Cogmind - Beta 16 @@@ ROGUE MODE // 2026.01.10 @ 09:19:52 Player: Glyb Result: Destroyed by Y-64 Sentinel with Wave Gun Performance ------------- Evolutions (5) 2500 Regions Visited (13) 2600 Robots Destroyed (67) 335 Value Destroyed (2017) 2017 Prototype IDs (33) 660 Alien Tech Used (0) 0 Bonus (897) 897 TOTAL SCORE: 9009 Bonus ------- Follower Combat Kills 97 Entered DSFs 500 Aligned with FarCom 300 Cogmind --------- Core Integrity 0/1000 Matter 48/300 Energy 98/100 System Corruption 1% Temperature Cool (9) Movement Core (50) Location -5/Factory Parts ------- > --- POWER (2) -------- (None) > --- PROPULSION (4) --- (None) > --- UTILITY (7) ------ Hacking Suite > --- WEAPON (4) ------- (None) > --- INVENTORY (5) ---- Experimental Sensor Array Improved Weapon Cycler Long-range Proton Cannon Peak State ------------ > --- POWER ------------ Nuclear Core Light Angular Momentum Engine > --- PROPULSION ------- Armored Huge Wheel Armored Huge Wheel > --- UTILITY ---------- Energy Well Improved Sensor Array Terrain Scan Processor Hardened Medium Armor Plating EM Shield Shield Generator > --- WEAPON ----------- Plasma Rifle Great Axe Longsword +1 > --- INVENTORY -------- Improved Ion Engine Armored Wheel Experimental Sensor Array Hardened Medium Armor Plating Precision Shock Rifle [Rating: 63] Favorites ----------- Power Light Angular Momentum Engine Engine Light Angular Momentum Engine Power Core Nuclear Core Propulsion Wheel Leg Aluminum Leg Wheel Wheel Flight Unit VTOL Module Utility Terrain Scan Processor Device Terrain Scanner Storage Small Storage Unit Processor Terrain Scan Processor Hackware Hacking Suite Protection Hardened Medium Armor Plating Weapon Particle Gun Energy Gun Particle Gun Energy Cannon Ion Cannon Ballistic Gun High-powered Shotgun Ballistic Cannon Mass Driver Launcher Grenade Launcher Special Weapon Improved Plasma Cutter Impact Weapon Mace Slashing Weapon Longsword +1 Build | -11 -10 -10 -9 -9 -9 -8 -8 -7 -7 -6 -6 -6 -5 ------- Run | Yrd Mat Min Mat Min Exi Min Mat Fac DSF Fac Was Fac Fac Slots Evolved 10 | . . . 2 . . . 2 2 . 2 . . 2 Power 1 | . . . . . . . . . . 1 . . . Propulsion 2 | . . . 1 . . . . . . 1 . . . Utility 5 | . . . 1 . . . 1 2 . . . . 1 Weapon 2 | . . . . . . . 1 . . . . . 1 Parts Attached 99 | 6 8 1 11 3 . . 13 6 11 18 . . 22 Power 13 | 1 1 . . 1 . . 3 1 1 4 . . 1 Engine 9 | 1 1 . . 1 . . 1 1 . 3 . . 1 Core 4 | . . . . . . . 2 . 1 1 . . . Reactor . | . . . . . . . . . . . . . . Propulsion 26 | 2 2 . 4 . . . 1 2 6 2 . . 7 Treads . | . . . . . . . . . . . . . . Leg 6 | 2 2 . . . . . . . . . . . 2 Wheel 17 | . . . 4 . . . 1 . 6 2 . . 4 Hover . | . . . . . . . . . . . . . . Flight 3 | . . . . . . . . 2 . . . . 1 Utility 31 | 1 2 . 2 2 . . 3 2 2 8 . . 9 Device 17 | . 1 . . 1 . . 2 1 1 4 . . 7 Storage 4 | 1 1 . 1 . . . . . . 1 . . . Processor 3 | . . . 1 1 . . . . . 1 . . . Hackware 2 | . . . . . . . . . . . . . 2 Protection 5 | . . . . . . . 1 1 1 2 . . . Artifact . | . . . . . . . . . . . . . . Weapon 29 | 2 3 1 5 . . . 6 1 2 4 . . 5 Energy Gun 10 | 2 2 . 2 . . . 1 . . 3 . . . Energy Cannon 5 | . . . 2 . . . 2 . . 1 . . . Ballistic Gun 2 | . . . . . . . . 1 1 . . . . Ballistic Cannon 3 | . . . . . . . . . . . . . 3 Launcher 5 | . 1 1 1 . . . 2 . . . . . . Special Weapon 1 | . . . . . . . . . . . . . 1 Impact Weapon 1 | . . . . . . . . . . . . . 1 Slashing Weapon 2 | . . . . . . . 1 . 1 . . . . Piercing Weapon . | . . . . . . . . . . . . . . Special Melee Weapon . | . . . . . . . . . . . . . . Unidentified Prototypes 2 | . . . . . . . . 1 . 1 . . . Parts Lost 46 | . . 1 3 1 . . 9 . 3 10 1 . 18 Power 6 | . . . . . . . 1 . 1 2 . . 2 Propulsion 19 | . . . 2 . . . 4 . 2 4 . . 7 Utility 12 | . . . . 1 . . 2 . . 3 1 . 5 Weapon 9 | . . 1 1 . . . 2 . . 1 . . 4 Highest Loss Streak 10 | . . 1 2 1 . . 9 . 2 5 1 . 10 To Critical Strikes . | . . . . . . . . . . . . . . Average Backups 7 | 2 6 7 7 10 13 15 14 4 3 4 5 5 4 Power . | . 1 1 1 1 1 1 1 . . . 1 1 . Propulsion . | . 1 1 . . . . . . . . . . . Utility 4 | . 2 4 5 6 7 8 7 2 2 2 2 2 3 Weapon 2 | . 2 1 1 3 5 6 4 . 1 . 2 1 . Tool/Special . | . . . . . . . . . . . . . . Unused Backups 17 | . 3 . 1 . . . 6 1 3 1 . . 2 Power 1 | . . . . . . . . . . 1 . . . Propulsion 3 | . 1 . 1 . . . . . 1 . . . . Utility 6 | . 1 . . . . . 2 1 1 . . . 1 Weapon 7 | . 1 . . . . . 4 . 1 . . . 1 Tool/Special . | . . . . . . . . . . . . . . Average Slot Usage (%) 79 | . 97 100 93 99 100 100 91 35 52 83 11 6 33 Engine 7 | . 14 14 11 11 11 11 4 3 3 5 . . 3 Core 1 | . . . . . . . 2 . 1 6 . . . Leg 7 | . 28 28 24 . . . . . . . . . 2 Wheel 12 | . . . 6 33 33 33 24 . 12 13 . . 4 Device 11 | . 8 14 11 10 11 11 8 3 9 19 4 . 7 Storage 8 | . 17 14 11 11 11 11 8 . . 5 . . . Processor 6 | . . . 10 11 11 11 9 7 7 6 6 6 3 Protection 1 | . . . . . . . 7 3 2 5 . . . Energy Gun 10 | . 27 18 4 18 22 22 6 . . 5 . . 1 Energy Cannon 1 | . . . 3 . . . 7 . . . . . . Launcher 2 | . . 9 9 3 . . 1 . . . . . . Slashing Weapon 3 | . . . . . . . 9 7 9 12 . . . Peak Build Rating 63 | 6 7 8 13 15 16 16 31 25 41 63 13 5 59 Average Rating 25 | 4 6 7 10 14 15 16 27 16 26 57 7 5 26 On Entrance 12 | . 6 7 8 13 15 16 16 11 21 41 13 5 5 Avg Prop Armor Cover (%) 10 | . . . 7 . . . . . . . . . 10 Naked Turns 36 | . . . . . . . . . . . . . 36 Heaviest Build 56 | 14 19 16 33 34 34 34 50 13 26 46 2 . 56 Greatest Support 56 | 20 20 20 30 30 30 30 30 17 49 56 3 3 23 Greatest Overweight (x) 9 | . . . 1 1 1 1 9 1 . 1 . . 4 Average Overweight (x) . | . . . . 1 1 1 1 . . . . . . Largest Inventory Capacity 15 | 8 8 8 15 15 15 15 15 5 5 5 5 5 5 Average Capacity 8 | 6 8 8 8 15 15 15 14 5 5 5 5 5 5 Most Carried 15 | 3 8 8 9 13 15 15 15 5 5 5 5 5 5 Average Carried 7 | 2 6 7 7 10 13 15 14 3 4 4 5 4 4 Final Capacity 15 | 8 8 8 15 15 15 15 5 5 5 5 5 5 5 Final Carried 15 | 3 8 8 9 13 15 15 5 3 4 5 5 5 3 Class Distribution -------------------- 42% | Mutant 20% | Scavenger-Assassin 16% | Scavenger-Mutant 5% | Assassin 5% | Skirmisher 4% | Gladiator Dominant Class ---------------- Mutant | -10/Materials Mutant | -10/Mines Mutant | -9/Materials Scavenger-Mutant | -9/Mines Scavenger-Mutant | -9/Exiles Scavenger-Skirmisher | -8/Mines Scavenger-Assassin | -8/Materials Sprinter | -7/Factory Mutant | -7/DSF Scavenger-Assassin | -6/Factory Mutant | -6/Waste Mutant | -6/Factory Mutant | -5/Factory Resources | -11 -10 -10 -9 -9 -9 -8 -8 -7 -7 -6 -6 -6 -5 ----------- Run | Yrd Mat Min Mat Min Exi Min Mat Fac DSF Fac Was Fac Fac Matter Collected 1565 | 260 200 34 246 118 . . 196 . 155 134 . . 222 Remotely . | . . . . . . . . . . . . . . Salvage Created 2321 | 71 292 16 497 170 . . 416 . 177 532 . . 150 Parts 151 | 2 21 5 37 10 . . 30 . 14 21 . . 11 Haulers Intercepted 3 | . . . 2 . . . . . . 1 . . . Recyclers Shooed 2 | . . 1 1 . . . . . . . . . . Parts Field Recycled . | . . . . . . . . . . . . . . Retrieved Matter . | . . . . . . . . . . . . . . Parts Self-Destructed . | . . . . . . . . . . . . . . Prevented . | . . . . . . . . . . . . . . Parts Restored . | . . . . . . . . . . . . . . Kills | -11 -10 -10 -9 -9 -9 -8 -8 -7 -7 -6 -6 -6 -5 ------- Run | Yrd Mat Min Mat Min Exi Min Mat Fac DSF Fac Was Fac Fac Combat Hostiles Destroyed 45 | . 7 3 10 4 . . 8 . 3 8 . . 2 Melee 13 | . . . . . . . 2 . 3 8 . . . Guns 7 | . 3 . . 3 . . 1 . . . . . . Cannons 6 | . . . 3 . . . 1 . . . . . 2 AOE 17 | . 3 3 6 1 . . 4 . . . . . . Classes Destroyed 14 | 1 5 . 3 1 . . . . 2 2 . . . Worker 4 | . . . 3 . . . . . . . . . 1 Builder 9 | . 1 . 3 . . . 2 . . . . . 3 Hauler 3 | . . . 2 . . . . . . 1 . . . Recycler 2 | 1 . . . . . . 1 . . . . . . Operator 2 | . 1 . . . . . 1 . . . . . . Watcher 2 | . 1 . . . . . . . . . . . 1 Swarmer 12 | . 3 3 3 . . . 3 . . . . . . Saboteur 1 | . . . . . . . . . . 1 . . . Grunt 18 | . 4 . 4 2 . . 4 . . 4 . . . Brawler 2 | . . . . 2 . . . . . . . . . Sentry 6 | . . . 3 . . . 1 . . 1 . . 1 Specialist 2 | . . . . . . . . . 2 . . . . Hunter 2 | . . . . . . . . . 1 . . . 1 Programmer 2 | . . . . . . . . . . 2 . . . Best Kill Streak 6 | 1 3 2 6 2 . . 3 . 3 4 . . 2 Combat Bots Only 5 | . 3 2 5 2 . . 3 . 3 4 . . 1 Max Kills in Single Turn 3 | 1 3 2 2 2 . . 2 . 1 1 . . 1 Gunslinging . | . . . . . . . . . . . . . . Exploded 3 | . 3 2 2 1 . . 2 . . . . . . Melee 1 | . . . . . . . 1 . 1 1 . . . Uniques/NPCs Destroyed . | . . . . . . . . . . . . . . Combat | -11 -10 -10 -9 -9 -9 -8 -8 -7 -7 -6 -6 -6 -5 -------- Run | Yrd Mat Min Mat Min Exi Min Mat Fac DSF Fac Was Fac Fac Hostile Shots Fired 623 | . 29 24 62 5 . . 73 . 43 170 2 . 215 Missed 197 | . 6 10 24 1 . . 23 . 14 51 1 . 67 Hits 426 | . 23 14 38 4 . . 50 . 29 119 1 . 148 Melee 12 | . . . . . . . . . . 1 1 . 10 Projectile 414 | . 23 14 38 4 . . 50 . 29 118 . . 138 AOE 3 | . . . . . . . . . . 2 . . 1 Critical Strikes 15 | . 1 . 2 . . . 2 . . 2 1 . 7 Damage Taken 6670 | . 329 126 398 88 . . 1153 . 550 1566 32 . 2428 Core 1928 | . 53 17 46 29 . . 281 . 109 347 32 . 1014 Absorbed by Shields 622 | . . . . . . . . . . 385 . . 237 Ignored by Resistances 72 | . . . . . . . . . . 72 . . . Core Remaining (%) 73 | 100 . 72 . . . 81 48 . 84 . . 55 . Volleys Fired 150 | 2 14 12 54 7 . . 17 . . 14 . . 30 Largest 3 | 2 2 2 2 2 . . 2 . . 1 . . 3 Hottest 169 | 80 80 70 130 130 . . 130 . . 85 . . 169 Shots Fired 204 | 4 28 13 63 14 . . 22 . . 13 . . 47 Gun 121 | 4 27 10 27 13 . . 8 . . 13 . . 19 Cannon 62 | . . . 25 . . . 9 . . . . . 28 Launcher 21 | . 1 3 11 1 . . 5 . . . . . . Special . | . . . . . . . . . . . . . . Kinetic 28 | . . . . . . . . . . . . . 28 Thermal 89 | . . . 27 13 . . 17 . . 13 . . 19 Explosive 18 | . 1 3 11 1 . . 2 . . . . . . Electromagnetic 69 | 4 27 10 25 . . . 3 . . . . . . Robot Hit Streak 13 | 4 6 2 13 4 . . 3 . . 2 . . 8 Robot Miss Streak 4 | . 2 4 4 1 . . 3 . . 3 . . 4 Penetration Max . | . . . . . . . . . . . . . . Secondary Targets 1 | . . . . 1 . . . . . . . . . Max Gunslinging Chain 1 | . . . . 1 . . . . . . . . . Shots Hit Robots 160 | 4 18 3 39 9 . . 21 . 6 32 . . 28 Core Hits 93 | 2 12 4 24 7 . . 18 . 3 12 . . 11 Critical Kills . | . . . . . . . . . . . . . . Critical Parts Destroyed . | . . . . . . . . . . . . . . Critical Strikes 10 | . 1 . 2 . . . . . . 4 . . 3 Burn 2 | . . . . . . . . . . 1 . . 1 Blast 2 | . . . . . . . . . . . . . 2 Corrupt 3 | . 1 . 2 . . . . . . . . . . Sever 3 | . . . . . . . . . . 3 . . . Melee Attacks 57 | . . . . . . . 16 . 6 34 . . 1 Impact 1 | . . . . . . . . . . . . . 1 Slashing 56 | . . . . . . . 16 . 6 34 . . . Piercing . | . . . . . . . . . . . . . . Sneak Attacks 4 | . . . . . . . 3 . . 1 . . . Combat Hostiles . | . . . . . . . . . . . . . . Follow-up Attacks 3 | . . . . . . . . . . 3 . . . Damage Inflicted 5817 | 55 610 190 1086 220 . . 1210 . 266 1344 . . 836 Guns 1188 | 55 275 20 280 149 . . 68 . . 121 . . 220 Cannons 1074 | . . . 411 . . . 71 . . . . . 592 Explosions 1367 | . 322 166 394 49 . . 436 . . . . . . Melee 2124 | . . . . . . . 635 . 266 1223 . . . Ramming 64 | . 13 4 1 22 . . . . . . . . 24 Kinetic 592 | . . . . . . . . . . . . . 592 Thermal 1109 | . 178 . 302 149 . . 139 . . 121 . . 220 Explosive 1018 | . 144 166 372 49 . . 287 . . . . . . Electromagnetic 910 | 55 275 20 411 . . . 149 . . . . . . Impact . | . . . . . . . . . . . . . . Slashing 2124 | . . . . . . . 635 . 266 1223 . . . Piercing . | . . . . . . . . . . . . . . Highest Corruption 6 | . . . . 4 4 4 . . 1 1 6 6 1 Average Corruption 2 | . . . . 4 4 4 . . 1 1 4 6 1 Corruption Purged . | . . . . . . . . . . . . . . Corruption Blocked . | . . . . . . . . . . . . . . Effects 34 | . . . . 5 13 1 . . 1 9 2 3 . Message Errors 14 | . . . . 1 5 . . . 1 6 . 1 . Matter Fused 7 | . . . . 3 1 1 . . . 1 . 1 . Heat Flow Errors 1 | . . . . . 1 . . . . . . . . Energy Discharges 3 | . . . . . 1 . . . . 1 . 1 . Data Loss (minor) 5 | . . . . . 4 . . . . . 1 . . Data Loss (major) 3 | . . . . 1 1 . . . . . 1 . . Weapon Failures 1 | . . . . . . . . . . 1 . . . Overload Shots . | . . . . . . . . . . . . . . Overflow Damage 86 | . . . 11 . . . 58 . . 14 . . 3 Projectiles 3 | . . . . . . . . . . . . . 3 Explosions 18 | . . . 11 . . . 7 . . . . . . Melee 65 | . . . . . . . 51 . . 14 . . . Knockbacks 2 | . . . . . . . . . . . . . 2 Impact 1 | . . . . . . . . . . . . . 1 Kinetic 1 | . . . . . . . . . . . . . 1 Secondary . | . . . . . . . . . . . . . . Self-Inflicted Damage 216 | . 43 14 9 11 . . 128 . . . . . 11 Shots 6 | . 2 1 1 . . . 2 . . . . . . Rammed 7 | . . . . 1 . . . . . . . . 6 Targets Rammed 11 | . 2 1 1 1 . . . . . . . . 6 Kicked 4 | . 2 1 1 . . . . . . . . . . Crushed . | . . . . . . . . . . . . . . Highest Temperature 402 | 36 150 9 240 402 237 . 78 . . 172 . . 360 Average Temperature 78 | 20 58 6 60 183 127 . 32 . . 61 . . 134 Received Heat Transfer 1206 | . 168 6 147 24 . . 261 . . 174 . . 426 Effects 1 | . . . . 1 . . . . . . . . . Matter Decay 1 | . . . . 1 . . . . . . . . . Siege Activations . | . . . . . . . . . . . . . . Martial Activations . | . . . . . . . . . . . . . . Shielding Activations . | . . . . . . . . . . . . . . Robots Disrupted 1 | . . . . . . . 1 . . . . . . Combat Hostiles 1 | . . . . . . . 1 . . . . . . Robots Corrupted 2 | . 1 . 1 . . . . . . . . . . Combat Hostiles 2 | . 1 . 1 . . . . . . . . . . Parts Fried 7 | 1 2 . 4 . . . . . . . . . . Impact Corruptions . | . . . . . . . . . . . . . . Robots Melted . | . . . . . . . . . . . . . . Combat Hostiles . | . . . . . . . . . . . . . . Parts Melted 1 | . . . . . . . . . . 1 . . . Heat Transferred 2458 | . 200 . 716 333 . . 259 . . 350 . . 600 Parts Sabotaged 2 | . . . . . . . . . . 2 . . . Parts Stolen . | . . . . . . . . . . . . . . Parts Stripped . | . . . . . . . . . . . . . . Power Chain Reactions 3 | . 2 . 1 . . . . . . . . . . Alert | -11 -10 -10 -9 -9 -9 -8 -8 -7 -7 -6 -6 -6 -5 ------- Run | Yrd Mat Min Mat Min Exi Min Mat Fac DSF Fac Was Fac Fac Maximum Alert Level 1 | . . . 1 . . . 1 . . . . . . Low Security (%) 96 | 100 100 100 70 100 . 100 98 100 100 100 100 100 100 Level 1 3 | . . . 29 . . . 1 . . . . . . Level 2 . | . . . . . . . . . . . . . . Level 3 . | . . . . . . . . . . . . . . Level 4 . | . . . . . . . . . . . . . . Level 5 . | . . . . . . . . . . . . . . High Security . | . . . . . . . . . . . . . . Max Security . | . . . . . . . . . . . . . . Peak Influence 236 | 5 137 118 236 148 . . 216 94 102 92 3 . 74 Initial 94 | . . 30 . 88 . . . 94 37 53 3 . . Average 47 | . 67 35 137 79 . . 72 73 57 17 . . 9 Influence Increases 2295 | 5 261 138 484 134 . . 541 . 95 286 . . 351 Destroy 0b10 Robot/C 960 | . 140 60 200 100 . . 200 . 60 160 . . 40 Destroy 0b10 Robot/NC 120 | 5 15 . 40 . . . 30 . . 5 . . 25 Destroy Leader 262 | . 32 10 74 20 . . 42 . 20 42 . . 22 Allied During Kill 29 | . . . . 4 . . 25 . . . . . . Successful Hack 109 | . 24 . 29 . . . . . . 14 . . 42 Disable Machine 225 | . 15 60 45 . . . 45 . . . . . 60 Anti-Garrison Action 150 | . . . . . . . 150 . . . . . . Destroy Structure 155 | . 20 8 51 10 . . 49 . . 5 . . 12 Partial Spotted 30 | . . . 30 . . . . . . . . . . Lose Combat Pursuer 255 | . 15 . 15 . . . . . 15 60 . . 150 Influence Decreases 2295 | 5 183 216 256 290 72 . 333 154 47 379 9 . 351 Entered New Map 446 | . . 48 . 140 72 . . 114 17 49 6 . . Time Decay 1410 | 5 183 158 226 140 . . 206 40 . 265 . . 187 Lost Part 325 | . . 10 30 10 . . 87 . 30 65 3 . 90 Lost Ally 40 | . . . . . . . 40 . . . . . . Purge Threat 74 | . . . . . . . . . . . . . 74 Squads Dispatched 23 | . 1 . 4 . . . 5 1 1 5 . . 6 Investigation 7 | . . . 3 . . . 1 1 . 1 . . 1 Extermination 3 | . . . . . . . . . . 2 . . 1 Reinforcement 11 | . 1 . 1 . . . 2 . 1 2 . . 4 Assault 2 | . . . . . . . 2 . . . . . . Garrison . | . . . . . . . . . . . . . . Intercept . | . . . . . . . . . . . . . . Searches Triggered . | . . . . . . . . . . . . . . Construction Impeded 2 | . . . 1 . . . . . . . . . 1 Haulers Reinforced 1 | . . . . . . . . . . 1 . . . Active Scanning Responses . | . . . . . . . . . . . . . . Cargo Convoy Interrupts 1 | . . . . . . . . . . 1 . . . Stealth | -11 -10 -10 -9 -9 -9 -8 -8 -7 -7 -6 -6 -6 -5 --------- Run | Yrd Mat Min Mat Min Exi Min Mat Fac DSF Fac Was Fac Fac Distress Signals 10 | . . . 1 . . . 3 . . 3 . . 3 Communications Jammed . | . . . . . . . . . . . . . . Distress Signals . | . . . . . . . . . . . . . . Times Spotted 119 | . 13 5 14 7 . . 20 . 4 28 5 . 23 Peak Tracking Total 13 | . 4 3 4 3 . . 9 . 2 13 5 . 7 Tactical Retreats 12 | . 1 . 1 . . . . . 1 3 . . 6 Traps | -11 -10 -10 -9 -9 -9 -8 -8 -7 -7 -6 -6 -6 -5 ------- Run | Yrd Mat Min Mat Min Exi Min Mat Fac DSF Fac Was Fac Fac Traps Triggered 5 | . . . . . . . 1 . . 2 . . 2 Indirectly . | . . . . . . . . . . . . . . Trap Hack Attempts . | . . . . . . . . . . . . . . Triggered . | . . . . . . . . . . . . . . Disarmed 1 | . 1 . . . . . . . . . . . . Reprogrammed . | . . . . . . . . . . . . . . Reused . | . . . . . . . . . . . . . . Traps Extracted . | . . . . . . . . . . . . . . Installed . | . . . . . . . . . . . . . . Triggered . | . . . . . . . . . . . . . . Machines | -11 -10 -10 -9 -9 -9 -8 -8 -7 -7 -6 -6 -6 -5 ---------- Run | Yrd Mat Min Mat Min Exi Min Mat Fac DSF Fac Was Fac Fac Machines Disabled 16 | . 1 4 3 . . . 4 . . . . . 4 Max in Single Turn 1 | . 1 1 1 . . . 1 . . . . . 1 Garrison Access 2 | . . . . . . . 1 . . . . . 1 Machines Repaired . | . . . . . . . . . . . . . . Machines Dismantled . | . . . . . . . . . . . . . . Machines Sabotaged . | . . . . . . . . . . . . . . Overloaded Fab Kills . | . . . . . . . . . . . . . . Hacking | -11 -10 -10 -9 -9 -9 -8 -8 -7 -7 -6 -6 -6 -5 --------- Run | Yrd Mat Min Mat Min Exi Min Mat Fac DSF Fac Was Fac Fac Machines Accessed 31 | . 6 . 4 . 3 . 3 2 . 5 . 1 7 Terminals 23 | . 5 . 3 . . . 3 2 . 4 . 1 5 Fabricators 1 | . . . . . . . . . . 1 . . . Repair Stations . | . . . . . . . . . . . . . . Recycling Units 2 | . 1 . . . . . . . . . . . 1 Scanalyzers 1 | . . . 1 . . . . . . . . . . Garrison Access 1 | . . . . . . . . . . . . . 1 Total Hacks 112 | . 24 . 17 . 30 . 8 7 . 10 . 1 15 Successful 68 | . 16 . 7 . 30 . 3 1 . 3 . . 8 Failed 44 | . 8 . 10 . . . 5 6 . 7 . 1 7 Catastrophic 11 | . 2 . . . . . . 1 . 4 . 1 3 Database Lockouts . | . . . . . . . . . . . . . . Manual 22 | . 1 . . . 1 . 5 . . 6 . 1 8 Terminals 70 | . 21 . 13 . . . 8 7 . 8 . 1 12 Fabricators 2 | . . . . . . . . . . 2 . . . Repair Stations . | . . . . . . . . . . . . . . Recycling Units 5 | . 3 . . . . . . . . . . . 2 Scanalyzers 4 | . . . 4 . . . . . . . . . . Garrison Access 1 | . . . . . . . . . . . . . 1 Terminal Hacks 55 | . 13 . 6 . 30 . 1 1 . 1 . . 3 Record 32 | . 2 . 1 . 29 . . . . . . . . Robot Analysis 2 | . 1 . 1 . . . . . . . . . . Prototype ID Bank 5 | . 4 . 1 . . . . . . . . . . Open DSF 3 | . . . . . . . . 1 . 1 . . 1 Branch Access Points 1 | . . . 1 . . . . . . . . . . Emergency Access Points 1 | . 1 . . . . . . . . . . . . Alert Level 2 | . . . 1 . . . 1 . . . . . . Unreport Threat 1 | . . . . . . . . . . . . . 1 Locate Traps 1 | . 1 . . . . . . . . . . . . Disarm Traps 2 | . 2 . . . . . . . . . . . . Dispatch Records 1 | . 1 . . . . . . . . . . . . Zone Layout 3 | . 1 . 1 . . . . . . . . . 1 Proto ID Catalog 1 | . . . . . 1 . . . . . . . . Fabricator Hacks 1 | . . . . . . . . . . 1 . . . Network Status 1 | . . . . . . . . . . 1 . . . Repair Station Hacks . | . . . . . . . . . . . . . . Recycling Unit Hacks 4 | . 3 . . . . . . . . . . . 1 Report Inventory 1 | . 1 . . . . . . . . . . . . Retrieve Matter 1 | . 1 . . . . . . . . . . . . Retrieve Components 2 | . 1 . . . . . . . . . . . 1 Scanalyzer 1 | . . . 1 . . . . . . . . . . Insert Component 1 | . . . 1 . . . . . . . . . . Garrison Access Hacks 1 | . . . . . . . . . . . . . 1 Seal Access 1 | . . . . . . . . . . . . . 1 Unauthorized Hacks 6 | . . . . . . . 2 . . 1 . . 3 Terminals 6 | . . . . . . . 2 . . 1 . . 3 Botnet 6 | . . . . . . . 2 . . 1 . . 3 Fabricators . | . . . . . . . . . . . . . . Repair Stations . | . . . . . . . . . . . . . . Recycling Units . | . . . . . . . . . . . . . . Scanalyzers . | . . . . . . . . . . . . . . Garrison Access . | . . . . . . . . . . . . . . Data Cores Recovered 2 | . 1 . . . . . 1 . . . . . . Used 1 | . 1 . . . . . . . . . . . . Hacking Detections 22 | . 5 . 4 . . . 2 2 . 3 . 1 5 Full Trace Events 7 | . 1 . 3 . . . . 1 . 1 . . 1 Feedback Events 2 | . . . . . . . . 1 . 1 . . . Corruption 2 | . . . . . . . . 1 . 1 . . . Feedback Blocked . | . . . . . . . . . . . . . . Robot Schematics Acquired . | . . . . . . . . . . . . . . Robots Built . | . . . . . . . . . . . . . . Authchips . | . . . . . . . . . . . . . . Time . | . . . . . . . . . . . . . . Total Robot Build Rating . | . . . . . . . . . . . . . . Part Schematics Acquired . | . . . . . . . . . . . . . . Parts Built . | . . . . . . . . . . . . . . Authchips . | . . . . . . . . . . . . . . Time . | . . . . . . . . . . . . . . Total Part Build Rating . | . . . . . . . . . . . . . . Part Studies Acquired . | . . . . . . . . . . . . . . Parts Repaired . | . . . . . . . . . . . . . . Time . | . . . . . . . . . . . . . . Parts Recycled . | . . . . . . . . . . . . . . Recycled Matter . | . . . . . . . . . . . . . . Retrieved Matter . | . . . . . . . . . . . . . . Retrieved Components 2 | . 2 . . . . . . . . . . . . Parts Scanalyzed 1 | . . . 1 . . . . . . . . . . Part Schematics Acquired . | . . . . . . . . . . . . . . Parts Damaged 1 | . . . 1 . . . . . . . . . . Bothacking | -11 -10 -10 -9 -9 -9 -8 -8 -7 -7 -6 -6 -6 -5 ------------ Run | Yrd Mat Min Mat Min Exi Min Mat Fac DSF Fac Was Fac Fac Used RIF Installer . | . . . . . . . . . . . . . . Robots Hacked . | . . . . . . . . . . . . . . Non-combat . | . . . . . . . . . . . . . . Combat . | . . . . . . . . . . . . . . Robot Hacks Applied . | . . . . . . . . . . . . . . Relay Couplers Released 1 | . . . . . . . 1 . . . . . . Machine Destruction 1 | . . . . . . . 1 . . . . . . Fabnet Peak Effective % . | . . . . . . . . . . . . . . Robots Rewired . | . . . . . . . . . . . . . . Allies Hacked . | . . . . . . . . . . . . . . Hacks Repelled . | . . . . . . . . . . . . . . Allies | -11 -10 -10 -9 -9 -9 -8 -8 -7 -7 -6 -6 -6 -5 -------- Run | Yrd Mat Min Mat Min Exi Min Mat Fac DSF Fac Was Fac Fac Total Allies 4 | . . . . 4 . . . . . . . . . Largest Group 4 | . . . . 4 4 3 3 . . . . . . Highest-Rated Group 71 | . . . . 71 71 40 40 . . . . . . Highest-Rated Ally 31 | . . . . 31 31 16 16 . . . . . . Total Orders . | . . . . . . . . . . . . . . Ally Attacks 41 | . . . . 5 . . 36 . . . . . . Total Damage 425 | . . . . 83 . . 342 . . . . . . Kills 5 | . . . . 1 . . 4 . . . . . . Allies Corrupted . | . . . . . . . . . . . . . . Allies Melted . | . . . . . . . . . . . . . . Intel | -11 -10 -10 -9 -9 -9 -8 -8 -7 -7 -6 -6 -6 -5 ------- Run | Yrd Mat Min Mat Min Exi Min Mat Fac DSF Fac Was Fac Fac Active Infowar (turns) 4418 | . 324 471 501 289 632 20 503 . 31 1122 18 . 507 Sensors 2497 | . 324 471 501 30 . . . . 31 1122 18 . . Terrain 1474 | . . . . 259 632 20 503 . . . . . 60 Structural 447 | . . . . . . . . . . . . . 447 Robot Analysis Total 2 | . 1 . 1 . . . . . . . . . . Derelict Logs Recovered 2 | . . . . 2 . . . . . . . . . Drone Launches . | . . . . . . . . . . . . . . Drone Recoveries . | . . . . . . . . . . . . . . Exploration | -11 -10 -10 -9 -9 -9 -8 -8 -7 -7 -6 -6 -6 -5 ------------- Run | Yrd Mat Min Mat Min Exi Min Mat Fac DSF Fac Was Fac Fac Turns Passed 5341 | 68 518 471 501 290 632 20 542 99 138 1122 69 59 812 Spaces Moved 4875 | 47 359 360 299 260 657 22 447 182 146 939 137 111 909 Core 819 | 8 . . . . . . 10 77 15 22 137 111 439 Treads . | . . . . . . . . . . . . . . Legs 993 | 39 359 360 217 . . . . . . . . . 18 Wheels 2783 | . . . 82 260 657 22 437 . 69 917 . . 339 Hover . | . . . . . . . . . . . . . . Flight 280 | . . . . . . . . 105 62 . . . 113 Fastest Speed 32 | 50 120 120 80 95 95 95 50 32 32 50 50 50 40 Average Speed 92 | 108 120 120 112 95 95 95 97 40 62 103 50 50 73 Slowest Speed 500 | 120 120 120 190 95 95 95 500 112 95 110 50 50 170 Overloaded Moves . | . . . . . . . . . . . . . . Propulsion Burnouts . | . . . . . . . . . . . . . . Robots Hopped 10 | . . . . . . . . . . . . . 10 Potential Cave-ins . | . . . . . . . . . . . . . . Cave-ins Triggered . | . . . . . . . . . . . . . . Exploration Rate (%) 43 | 3 59 84 29 56 92 9 43 4 93 26 85 3 22 Regions Visited 13 Branch Regions 4 Pre-discovered Areas 2 | . . . . 2 . . . . . . . . . Known Exits Taken 2 | . . . 1 . . . . 1 . . . . . Unknown Exits Taken 8 | 1 1 1 . 1 1 1 1 . . . . 1 . Scrap Searched 4 | . . 1 . 3 . . . . . . . . . Spaces Dug 13 | . . . 5 . . . 3 . . 5 . . . Terrain Destroyed 149 | . 20 8 49 10 . . 49 . . 5 . . 8 Melee 7 | . . . . . . . 2 . . 5 . . . Projectile 9 | . . . . . . . 1 . . . . . 8 AOE 133 | . 20 8 49 10 . . 46 . . . . . . Terrain Rammed . | . . . . . . . . . . . . . . Walls Destroyed . | . . . . . . . . . . . . . . Machines Disabled . | . . . . . . . . . . . . . . Actions | -11 -10 -10 -9 -9 -9 -8 -8 -7 -7 -6 -6 -6 -5 --------- Run | Yrd Mat Min Mat Min Exi Min Mat Fac DSF Fac Was Fac Fac Total 5426 | 57 417 385 397 288 664 21 517 206 187 1047 136 114 990 Wait 91 | . 17 7 16 3 5 . 3 15 11 13 . . 1 Move 4848 | 46 358 359 298 259 656 21 446 181 145 939 136 110 894 Hop 5 | . . . . . . . . . . . . . 5 Pick Up 61 | 3 11 2 7 8 2 . 8 1 5 8 . 2 4 Fast Attach 49 | 6 . . 5 . . . 2 4 7 4 . . 21 Attach 32 | . 1 1 2 2 . . 6 2 2 6 . . 10 Detach 14 | . . . . 1 . . 2 1 1 4 . . 5 Swap 41 | . 8 2 7 4 . . 6 . 2 12 . . . Drop 51 | . 6 1 7 3 . . 11 2 8 9 . 2 2 Fire 150 | 2 14 12 54 7 . . 17 . . 14 . . 30 Melee 53 | . . . . . . . 16 . 6 30 . . 1 Ram 7 | . . . . 1 . . . . . . . . 6 Kick 4 | . 2 1 1 . . . . . . . . . . Crush . | . . . . . . . . . . . . . . Escape Stasis 19 | . . . . . . . . . . 8 . . 11 Rewire 1 | . . . . . 1 . . . . . . . . Trap . | . . . . . . . . . . . . . . Miscellaneous . | . . . . . . . . . . . . . . Route ------- -11/Scrapyard -10/Materials (discovered 2 exits: *Mat / [*Min]) -10/Mines (discovered 2 exits: *Mat x2) -9/Materials -9/Mines (discovered 2 exits: *Mat / *Exi) -9/Exiles (discovered 2 exits: [*Min x2]) -8/Mines -8/Materials -7/Factory (discovered 2 exits: *Fac / DSF) -7/DSF -6/Factory -6/Waste -6/Factory -5/Factory (discovered 1 exit: [*Fac]) History --------- Turn | Location | Event 8 | -11/Scrapyard | Discovered new exit (range 14) 69 | -11/Scrapyard | Entered Materials 306 | -10/Materials | Build established: Mutant 460 | -10/Materials | Discovered new exit (range 16) 517 | -10/Materials | Discovered new exit (range 6) 587 | -10/Materials | Entered Mines 885 | -10/Mines | YI-UF0 nonchalantly dropped a Grenade Launcher on the ground 996 | -10/Mines | Discovered new exit (range 8) 1007 | -10/Mines | Found a damaged Exp. Sensor Array with a note attached 1011 | -10/Mines | Found Prototype Device 1041 | -10/Mines | Discovered new exit (range 14) 1058 | -10/Mines | Entered Materials 1058 | -9/Materials | Evolved 2 slots: Propulsion x1, Utility x1 1084 | -9/Materials | Identified exit to Mines 1559 | -9/Materials | Entered Mines 1597 | -9/Mines | Learned location of Zion (-6) 1639 | -9/Mines | Joined a pair of Derelicts in attacking an 0b10 outpost 1684 | -9/Mines | Received a Mining Laser from a helpful Derelict 1761 | -9/Mines | Received a Rocket Launcher from a helpful Derelict 1825 | -9/Mines | Discovered new exit (range 3) 1831 | -9/Mines | Learned location of Recycling (-7) 1831 | -9/Mines | Assisted by bots powering up and referring to "LRC-V3" 1843 | -9/Mines | Deemed a non-threat by the Exiles lab entrance 1844 | -9/Mines | Discovered new exit (range 5) 1849 | -9/Mines | Entered Exiles 1849 | -9/Exiles | Accompanied by 4 allies 1863 | -9/Exiles | Discovered new exit (range 15) 1877 | -9/Exiles | Met 8R-AWN 1890 | -9/Exiles | Build established: Scavenger-Mutant 1893 | -9/Exiles | Met EX-HEX 1931 | -9/Exiles | Met EX-BIN 1945 | -9/Exiles | Aligned with FarCom system 1946 | -9/Exiles | Given EX-Vault access code 2007 | -9/Exiles | Opened EX-Vault 2024 | -9/Exiles | Found Longsword +1 2044 | -9/Exiles | Warned to stay clear of 0b10 Research branches 2074 | -9/Exiles | Met EX-DEC 2152 | -9/Exiles | Discovered new exit (range 14) 2237 | -9/Exiles | Visited The Gauntlet 2481 | -9/Exiles | Left Exiles lab with Longsword +1 2481 | -9/Exiles | Entered Mines 2481 | -8/Mines | Accompanied by 3 allies 2490 | -8/Mines | Discovered new exit (range 3) 2501 | -8/Mines | Entered Materials 2501 | -8/Materials | Accompanied by 3 allies 2501 | -8/Materials | Evolved 2 slots: Utility x1, Weapon x1 2807 | -8/Materials | Build established: Scavenger-Assassin 3033 | -8/Materials | Discovered new exit (range 9) 3034 | -8/Materials | Core integrity fell below 50% 3043 | -8/Materials | Entered Factory 3043 | -7/Factory | Evolved 2 slots: Utility x2 3064 | -7/Factory | Lost 9 parts (1p4n2u2w) 3125 | -7/Factory | Discovered new exit (range 14) 3142 | -7/Factory | Identified exit to DSF 3142 | -7/Factory | Entered DSF 3162 | -7/DSF | Additional patrols routed to DSF 3170 | -7/DSF | Discovered new exit (range 15) 3280 | -7/DSF | Entered Factory 3280 | -6/Factory | Evolved 2 slots: Power x1, Propulsion x1 4274 | -6/Factory | Cargo convoy interrupted 4320 | -6/Factory | Lost 3 parts (1p1u1w) 4402 | -6/Factory | Sucked down chute 4402 | -6/Factory | Entered Waste 4414 | -6/Waste | Spotted C-40 Crusher 4415 | -6/Waste | Spotted C-40 Crusher 4417 | -6/Waste | EMP discharged 4420 | -6/Waste | Lost 5 parts (1p3n1u) 4420 | -6/Waste | Spotted C-40 Crusher 4420 | -6/Waste | Crushed by Compactor (1 part destroyed, 1 dropped) 4423 | -6/Waste | Spotted C-40 Crusher 4433 | -6/Waste | Spotted C-40 Crusher 4456 | -6/Waste | Discovered new exit (range 12) 4471 | -6/Waste | Entered Factory 4525 | -6/Factory | Discovered new exit (range 8) 4530 | -6/Factory | Entered another Factory area 4530 | -5/Factory | Evolved 2 slots: Utility x1, Weapon x1 5112 | -5/Factory | Spotted B-75 Beast 5132 | -5/Factory | Core integrity fell below 50% 5156 | -5/Factory | Build established: Mutant 5182 | -5/Factory | Lost 10 parts (1p3n5u1w) 5328 | -5/Factory | Discovered new exit (range 11) 5335 | -5/Factory | Core integrity fell below 20% 5342 | -5/Factory | Destroyed by Y-64 Sentinel with Wave Gun Last Messages --------------- 05292_ Acquired Mace. 05295_ O-24 Administrator: "IFF HANDSHAKE FAILED. SECURING TERMINAL." 05299_ O-24 Administrator sends out distress signal. 05310_ Knocked back. 05314_ Mace severed. 05324_ ALERT: Hostiles spotted, dispatching reinforcements to Terminal F004. 05326_ Adv. Terrain Scanner severed. 05328_ Adv. Hacking Suite severed. 05328_ EXIT=FOUND 05332_ Slug penetrates Wall. 05334_ Nuclear Pulse Array destroyed. 05336_ Slammed into C-35 Carver. 05337_ Energy Well severed. 05338_ Wheel destroyed. 05338_ Knocked back. 05339_ Slug penetrates G-50 Soldier. 05340_ Slammed into C-35 Carver. 05340_ Destabilizing: System corrupted (+1). 05341_ Slammed into Y-64 Sentinel. Map ----- +----------------------------------------------------+ | ??????????# # """ #??# ######????????????????? | | ??????????# # """ #??# #?????????????????????? | | ??????????# # """ #??# #?????????????????????? | | ??????????# ##########+######????????????????? | | ??????#???# #??????# #????????????????? | | ??????????# ##??????# """ #????????????????? | | ?#????????## #??????#! """ #????????????????? | | ???????????# ##??????# """ #????????????????? | | ????????#?## ##??????# #????????????????? | | ########### #??????# """ #????????????????? | | #! ! # " #####??# """ #????????????????? | | # + "T #??#! """ #????????????????? | | # # ### #??# #?##############?? | | # """T""" # ! #?# #??#####+###### #?? | | ############# ###?# #???# + #?? | | ??########### #???# #???# # #?? | | #?# # #???# ##### # """ #?? | | #?# # #???# """ + """ #?? | | ### """ """ # #???#!##### """"" # """ #?? | | #?# """ """ + #####+##??# """"" # "" #?? | | #?# """ """ # # ?# # """ """ #?? | | #?# # # # "F "" # """ F" #?? | | #?# # # """ ! # %""""" # """ """ #?? | | #?# ! # # """"" + """"" /# "" #?? | | ############# # """"" #c # #?? | | + + / #@g #######+######## | | #############+##########cY####### #???# | | #??????# #?#uH #????p#???# ##/### | | #??????# """"""""" #?# g #???? #???# #????? | | ???????# #?# A< #???# ##### #????? | | ???????# """"""""" #?# #???# p #????? | | ???????#! #?# #???####### #????? | | ???????##############?## ##?????????# ###### | | ????????#??????????????# t#??????????# | | ?? ?????????"??????????+ g#??????????# | | ?????????#?????????????# +??????????# | | ??#????????????????????# #??????????# | | ???????????????????????# #??????????# | | ???????#?#?????????????# #??????????####+#####+# | | ???????????????????????# #??????????????????#? ? | | ??????????????????????? +??????????????????# | | ????#?????????????? ???# #??????????????????# | | ???????????????????????#####??????????????????# | | ??????????????????????????????????????????????# | | ????????????????? ????????????????????????????# | | ???????????????????????#??????????????????????# | | ??????????????????????????????????????????????# "" | | ?????????????????????????????????????????????????? | | ????????????? ???????????????????????????????????? | | ?????????????????????????????????????????????????? | +----------------------------------------------------+ Best States ------------- Heat Dissipation 56 Energy Generation 31 Energy Capacity 730 Matter Stores 300 Matter Capacity 300 Sight Range 16 Robot Scan Range 15 Terrain Scan Range 20 Terrain Scan Density 85 Additional Mass Support 9 Armor Coverage 225 Resistance: EM 25 Evasion (%) 63 Melee Accuracy 5 Recoil Reduction 4 Offensive Hacking 24 Item Schematics ----------------- None Robot Schematics ------------------ None Fabricated ------------ Nothing Repaired ---------- Nothing Studied --------- None Alien Tech Used ----------------- None Achievements -------------- Jackpot Quantum Hacking Sixth Sense Window Shopping Challenges ------------ None Game ------ Seed FieldCoolantBotcube Manual? 0 Play Time 01:42:26 Cumulative 20.9 hours Start 2026.01.10 @ 07:31:28 End 2026.01.10 @ 09:19:52 Sessions 1 Manual Loads 0 Difficulty Rogue Special Mode None Game No. 25 Rogue 25 Adventurer 0 Explorer 0 Win Type - Total 0 Types 0/0/0/0/0/0/0/0/0/0 Lore% 15 Gallery% 26 Achievement% 19 Wizard Run 0 Options --------- Layout 0 ASCII 0 Keyboard 1 Movement Arrows Keybinds 0 Fullscreen 1 Font 18/SmallcapsGlow Map View 76x50 Zoom Use 0% Tactical HUD 1 Map Filters NONE Filters NONE Steam 1 RUN: da397a20-8219-4783-bb10-d10153e85ce7